[Event "*** Titled Tuesday Blitz"]
[Site "Chess.com"]
[Date "2020.12.01"]
[Round "8"]
[White "Gudmundur_Kjartansson"]
[Black "AryanTari"]
[Result "0-1"]
[WhiteElo "2557"]
[BlackElo "2898"]
[TimeControl "180+1"]
[EndTime "11:26:18 PST"]
[Termination "AryanTari won by resignation"]

1. d4 {[%clk 0:03:00.9]} 1... Nf6 {[%clk 0:02:56.2]} 2. c4 {[%clk 0:03:01.3]}
2... b6 {[%clk 0:02:56.7]} 3. Nc3 {[%clk 0:03:00.5]} 3... Bb7 {[%clk 0:02:55.5]}
4. d5 {[%clk 0:03:01]} 4... e6 {[%clk 0:02:40]} 5. a3 {[%clk 0:03:01.3]} 5... g6
{[%clk 0:02:33.6]} 6. g3 {[%clk 0:02:59.7]} 6... Bg7 {[%clk 0:02:33.6]} 7. Bg2
{[%clk 0:03:00]} 7... O-O {[%clk 0:02:34.3]} 8. Nf3 {[%clk 0:02:55.7]} 8... Na6
{[%clk 0:02:26.4]} 9. O-O {[%clk 0:02:54]} 9... Nc5 {[%clk 0:02:27]} 10. Nd4
{[%clk 0:02:48.9]} 10... e5 {[%clk 0:02:26.6]} 11. Nb3 {[%clk 0:02:34.3]} 11...
d6 {[%clk 0:02:17.7]} 12. Nxc5 {[%clk 0:02:33.7]} 12... bxc5 {[%clk 0:02:18.6]}
13. b4 {[%clk 0:02:33.5]} 13... Nd7 {[%clk 0:02:15.5]} 14. Rb1 {[%clk
0:02:29.1]} 14... Ba6 {[%clk 0:02:12]} 15. b5 {[%clk 0:02:27.1]} 15... Bc8
{[%clk 0:02:11.7]} 16. e4 {[%clk 0:02:23.6]} 16... f5 {[%clk 0:02:11.2]} 17. Qc2
{[%clk 0:01:50.8]} 17... h6 {[%clk 0:02:10.1]} 18. f3 {[%clk 0:01:34.2]} 18...
Nf6 {[%clk 0:02:08.9]} 19. Bd2 {[%clk 0:01:29.8]} 19... f4 {[%clk 0:02:00.5]}
20. gxf4 {[%clk 0:01:27.8]} 20... Nh5 {[%clk 0:02:00.3]} 21. fxe5 {[%clk
0:01:16.6]} 21... Bxe5 {[%clk 0:02:00.1]} 22. Ne2 {[%clk 0:01:17.1]} 22... Qh4
{[%clk 0:01:36.4]} 23. f4 {[%clk 0:01:14.2]} 23... Nxf4 {[%clk 0:01:27]} 24.
Nxf4 {[%clk 0:00:59.2]} 24... Bxf4 {[%clk 0:01:27.9]} 25. Bxf4 {[%clk
0:00:51.9]} 25... Rxf4 {[%clk 0:01:28.8]} 26. e5 {[%clk 0:00:34.3]} 26... Bf5
{[%clk 0:01:23.5]} 27. Qd2 {[%clk 0:00:33.7]} 27... Rd4 {[%clk 0:01:20.7]} 28.
Qe3 {[%clk 0:00:26.6]} 28... Re8 {[%clk 0:01:12.9]} 29. e6 {[%clk 0:00:25.1]}
29... Bxb1 {[%clk 0:01:08.7]} 30. Rxb1 {[%clk 0:00:24.8]} 30... Qf4 {[%clk
0:01:07.2]} 31. Qh3 {[%clk 0:00:19.1]} 31... Qh4 {[%clk 0:00:55.3]} 32. Qf3
{[%clk 0:00:18.1]} 32... Rf8 {[%clk 0:00:50.9]} 33. Qe2 {[%clk 0:00:16.2]} 33...
Qg5 {[%clk 0:00:37.6]} 34. Re1 {[%clk 0:00:11.9]} 34... Rd2 {[%clk 0:00:36.8]}
35. Qe4 {[%clk 0:00:07.2]} 35... Rff2 {[%clk 0:00:36.9]} 36. Kh1 {[%clk
0:00:05.7]} 36... Rxg2 {[%clk 0:00:35.2]} 0-1

[Event "*** Titled Tuesday Blitz"]
[Site "Chess.com"]
[Date "2020.12.01"]
[Round "8"]
[White "03revilo"]
[Black "Hypercar"]
[Result "0-1"]
[WhiteElo "2327"]
[BlackElo "2467"]
[TimeControl "180+1"]
[EndTime "11:26:18 PST"]
[Termination "Hypercar won by resignation"]

1. e4 {[%clk 0:03:00.9]} 1... c5 {[%clk 0:02:58.9]} 2. Nf3 {[%clk 0:03:01.2]}
2... e6 {[%clk 0:02:58.9]} 3. d4 {[%clk 0:03:01.5]} 3... cxd4 {[%clk 0:02:59.8]}
4. Nxd4 {[%clk 0:03:02.1]} 4... Nf6 {[%clk 0:03:00.3]} 5. Nc3 {[%clk 0:03:02.1]}
5... Nc6 {[%clk 0:03:00.6]} 6. Ndb5 {[%clk 0:03:01.8]} 6... d6 {[%clk
0:03:00.1]} 7. Bf4 {[%clk 0:03:02.2]} 7... e5 {[%clk 0:03:00.5]} 8. Bg5 {[%clk
0:03:02.7]} 8... a6 {[%clk 0:03:01.1]} 9. Na3 {[%clk 0:03:02.7]} 9... Be7 {[%clk
0:03:01.7]} 10. Nc4 {[%clk 0:03:01.8]} 10... Nd4 {[%clk 0:02:55.3]} 11. Ne3
{[%clk 0:03:00.2]} 11... Nxe4 {[%clk 0:02:51.4]} 12. Bxe7 {[%clk 0:02:17.6]}
12... Nxc3 {[%clk 0:02:49.2]} 13. Bxd8 {[%clk 0:02:17.6]} 13... Nxd1 {[%clk
0:02:48.1]} 14. Rxd1 {[%clk 0:02:18.5]} 14... Kxd8 {[%clk 0:02:46.8]} 15. c3
{[%clk 0:02:19.1]} 15... Nc6 {[%clk 0:02:40.5]} 16. Rxd6+ {[%clk 0:02:19]} 16...
Ke7 {[%clk 0:02:40.8]} 17. Rd2 {[%clk 0:02:15.2]} 17... Be6 {[%clk 0:02:40.3]}
18. Bc4 {[%clk 0:02:15.4]} 18... f5 {[%clk 0:02:39]} 19. O-O {[%clk 0:02:13.2]}
19... Rhd8 {[%clk 0:02:30.6]} 20. Rfd1 {[%clk 0:02:08]} 20... Rxd2 {[%clk
0:02:28.7]} 21. Rxd2 {[%clk 0:02:07.9]} 21... Rd8 {[%clk 0:02:29.3]} 22. Rxd8
{[%clk 0:01:55]} 22... Nxd8 {[%clk 0:02:30.2]} 23. Bxe6 {[%clk 0:01:31.7]} 23...
Kxe6 {[%clk 0:02:28.9]} 24. Kf1 {[%clk 0:01:32.3]} 24... f4 {[%clk 0:02:25]} 25.
Nc4 {[%clk 0:01:29.4]} 25... e4 {[%clk 0:02:22.4]} 26. Na5 {[%clk 0:01:14.4]}
26... b6 {[%clk 0:02:19.9]} 27. Nb3 {[%clk 0:01:11.9]} 27... Nc6 {[%clk
0:02:17.3]} 28. Ke2 {[%clk 0:01:06.7]} 28... Kd5 {[%clk 0:02:17.4]} 29. Nd2
{[%clk 0:00:59.6]} 29... g5 {[%clk 0:02:15.3]} 30. g3 {[%clk 0:00:59.7]} 30...
b5 {[%clk 0:02:13.5]} 31. h4 {[%clk 0:00:56.5]} 31... h6 {[%clk 0:02:12.1]} 32.
hxg5 {[%clk 0:00:56.4]} 32... hxg5 {[%clk 0:02:13]} 33. gxf4 {[%clk 0:00:56.9]}
33... gxf4 {[%clk 0:02:13.9]} 34. b3 {[%clk 0:00:41.3]} 34... b4 {[%clk
0:02:06.2]} 35. c4+ {[%clk 0:00:39.7]} 35... Kd4 {[%clk 0:02:04.7]} 36. f3
{[%clk 0:00:37.5]} 36... e3 {[%clk 0:01:58.7]} 37. Ne4 {[%clk 0:00:37.5]} 37...
Ke5 {[%clk 0:01:52.4]} 38. Nc5 {[%clk 0:00:37]} 38... Nd4+ {[%clk 0:01:52.1]}
39. Kd3 {[%clk 0:00:30.5]} 39... Nxf3 {[%clk 0:01:41.2]} 40. Nxa6 {[%clk
0:00:30.6]} 40... Nd4 {[%clk 0:01:31.9]} 41. Nxb4 {[%clk 0:00:07.7]} 41... e2
{[%clk 0:01:30.5]} 42. Kd2 {[%clk 0:00:05.5]} 42... f3 {[%clk 0:01:30.5]} 43.
Nd3+ {[%clk 0:00:05.9]} 43... Ke4 {[%clk 0:01:29.4]} 44. Nf2+ {[%clk 0:00:04.1]}
44... Kf4 {[%clk 0:01:29.3]} 45. c5 {[%clk 0:00:02.3]} 45... Kg3 {[%clk
0:01:25.4]} 46. Ne4+ {[%clk 0:00:02.4]} 46... Kg2 {[%clk 0:01:25.5]} 47. c6
{[%clk 0:00:02.7]} 47... f2 {[%clk 0:01:20.3]} 48. Nxf2 {[%clk 0:00:02.7]} 48...
Kxf2 {[%clk 0:01:20.4]} 49. c7 {[%clk 0:00:01.1]} 49... e1=Q+ {[%clk 0:01:20.7]}
50. Kd3 {[%clk 0:00:02]} 50... Qc1 {[%clk 0:01:20.1]} 51. Kxd4 {[%clk
0:00:01.6]} 51... Qxc7 {[%clk 0:01:20.7]} 52. b4 {[%clk 0:00:01.6]} 52... Kf3
{[%clk 0:01:20.5]} 53. a4 {[%clk 0:00:02.5]} 53... Qa7+ {[%clk 0:01:17]} 54. Kc4
{[%clk 0:00:02.7]} 54... Qxa4 {[%clk 0:01:17.3]} 0-1

[Event "*** Titled Tuesday Blitz"]
[Site "Chess.com"]
[Date "2020.12.01"]
[Round "8"]
[White "Gloomy_Wanderer"]
[Black "Chessdreamer2020"]
[Result "1-0"]
[WhiteElo "2707"]
[BlackElo "2530"]
[TimeControl "180+1"]
[EndTime "11:26:19 PST"]
[Termination "Gloomy_Wanderer won on time"]

1. Nf3 {[%clk 0:03:00.9]} 1... c5 {[%clk 0:02:58.1]} 2. c4 {[%clk 0:03:00.8]}
2... Nc6 {[%clk 0:02:58.4]} 3. b3 {[%clk 0:03:01]} 3... e5 {[%clk 0:02:56.5]} 4.
Bb2 {[%clk 0:03:01]} 4... e4 {[%clk 0:02:56.6]} 5. Ng1 {[%clk 0:03:01.3]} 5...
Nf6 {[%clk 0:02:55.3]} 6. Nc3 {[%clk 0:03:01.5]} 6... d6 {[%clk 0:02:50.9]} 7.
Qb1 {[%clk 0:02:55.9]} 7... Bf5 {[%clk 0:02:49.2]} 8. e3 {[%clk 0:02:35.2]} 8...
h5 {[%clk 0:02:38.8]} 9. Nge2 {[%clk 0:02:30.7]} 9... h4 {[%clk 0:02:37.9]} 10.
Nf4 {[%clk 0:02:28.6]} 10... Qd7 {[%clk 0:02:04.4]} 11. d3 {[%clk 0:02:24.3]}
11... exd3 {[%clk 0:01:57.9]} 12. Bxd3 {[%clk 0:02:25.2]} 12... Bxd3 {[%clk
0:01:57.2]} 13. Qxd3 {[%clk 0:02:26.1]} 13... O-O-O {[%clk 0:01:56.4]} 14. O-O-O
{[%clk 0:02:26]} 14... Ne5 {[%clk 0:01:54.8]} 15. Qc2 {[%clk 0:02:19]} 15... Rh6
{[%clk 0:01:49.7]} 16. h3 {[%clk 0:02:06.7]} 16... Kb8 {[%clk 0:01:44.1]} 17.
Rd2 {[%clk 0:02:00.7]} 17... Qc6 {[%clk 0:01:37.3]} 18. Rhd1 {[%clk 0:01:58.3]}
18... Rd7 {[%clk 0:01:33.5]} 19. Ncd5 {[%clk 0:01:54.4]} 19... Nxd5 {[%clk
0:01:31.3]} 20. Rxd5 {[%clk 0:01:53.8]} 20... Ng6 {[%clk 0:01:02.7]} 21. Nxg6
{[%clk 0:01:15.8]} 21... Rxg6 {[%clk 0:01:01.6]} 22. f3 {[%clk 0:01:16]} 22...
Be7 {[%clk 0:00:54.5]} 23. R1d2 {[%clk 0:01:06.6]} 23... Bg5 {[%clk 0:00:52]}
24. f4 {[%clk 0:01:03.9]} 24... Bf6 {[%clk 0:00:51]} 25. Ba3 {[%clk 0:00:54.4]}
25... b6 {[%clk 0:00:30.6]} 26. Qf5 {[%clk 0:00:54.3]} 26... Rg3 {[%clk
0:00:19.1]} 27. e4 {[%clk 0:00:46.7]} 27... Rc3+ {[%clk 0:00:17.7]} 28. Kb1
{[%clk 0:00:43.5]} 28... Re3 {[%clk 0:00:10.7]} 29. e5 {[%clk 0:00:40.2]} 29...
Be7 {[%clk 0:00:10.6]} 30. Qxf7 {[%clk 0:00:36.2]} 30... Re1+ {[%clk 0:00:09.4]}
31. Kc2 {[%clk 0:00:35.2]} 31... Kc7 {[%clk 0:00:07.4]} 32. e6 {[%clk
0:00:34.4]} 1-0

[Event "*** Titled Tuesday Blitz"]
[Site "Chess.com"]
[Date "2020.12.01"]
[Round "8"]
[White "annacramling"]
[Black "Praslov"]
[Result "0-1"]
[WhiteElo "2107"]
[BlackElo "2406"]
[TimeControl "180+1"]
[EndTime "11:26:20 PST"]
[Termination "Praslov won on time"]

1. d4 {[%clk 0:03:00.9]} 1... d5 {[%clk 0:02:58.8]} 2. c4 {[%clk 0:02:59.5]}
2... dxc4 {[%clk 0:02:58.5]} 3. Nf3 {[%clk 0:02:59.4]} 3... Nf6 {[%clk
0:02:58.1]} 4. e3 {[%clk 0:02:57.5]} 4... e6 {[%clk 0:02:58]} 5. Bxc4 {[%clk
0:02:57.5]} 5... a6 {[%clk 0:02:58.4]} 6. Nc3 {[%clk 0:02:56.6]} 6... b5 {[%clk
0:02:58.4]} 7. Bd3 {[%clk 0:02:56.9]} 7... Bb7 {[%clk 0:02:58.3]} 8. O-O {[%clk
0:02:56.6]} 8... Nbd7 {[%clk 0:02:57.1]} 9. Qe2 {[%clk 0:02:55.2]} 9... c5
{[%clk 0:02:55.7]} 10. e4 {[%clk 0:02:51.3]} 10... cxd4 {[%clk 0:02:52.4]} 11.
Nxd4 {[%clk 0:02:52.2]} 11... Nc5 {[%clk 0:02:48.1]} 12. Rd1 {[%clk 0:02:15.4]}
12... b4 {[%clk 0:02:09.3]} 13. e5 {[%clk 0:02:01.6]} 13... bxc3 {[%clk
0:01:59.5]} 14. exf6 {[%clk 0:02:01.7]} 14... Nxd3 {[%clk 0:01:50.7]} 15. Rxd3
{[%clk 0:01:56.1]} 15... Qxf6 {[%clk 0:01:40.1]} 16. bxc3 {[%clk 0:01:40.4]}
16... Be7 {[%clk 0:01:30.2]} 17. Rg3 {[%clk 0:01:33]} 17... h6 {[%clk
0:01:20.3]} 18. Bb2 {[%clk 0:01:11.8]} 18... Bd6 {[%clk 0:01:18.4]} 19. Re3
{[%clk 0:01:05.8]} 19... Bf4 {[%clk 0:01:14]} 20. Nxe6 {[%clk 0:00:50.5]} 20...
Bxe3 {[%clk 0:01:04.6]} 21. Nc7+ {[%clk 0:00:48.9]} 21... Kd7 {[%clk 0:00:58.9]}
22. Nxa8 {[%clk 0:00:41.2]} 22... Bc5 {[%clk 0:00:36.3]} 23. Rd1+ {[%clk
0:00:34.3]} 23... Kc8 {[%clk 0:00:35.1]} 24. c4 {[%clk 0:00:24.6]} 24... Qc6
{[%clk 0:00:32.5]} 25. Qg4+ {[%clk 0:00:17]} 25... Kb8 {[%clk 0:00:26.4]} 26.
Qxg7 {[%clk 0:00:10.8]} 26... Re8 {[%clk 0:00:22.5]} 27. Nb6 {[%clk 0:00:01.2]}
27... Bxb6 {[%clk 0:00:20.7]} 0-1

[Event "*** Titled Tuesday Blitz"]
[Site "Chess.com"]
[Date "2020.12.01"]
[Round "8"]
[White "Savagelittlemole"]
[Black "Fortitudine"]
[Result "1/2-1/2"]
[WhiteElo "2524"]
[BlackElo "2357"]
[TimeControl "180+1"]
[EndTime "11:26:23 PST"]
[Termination "Game drawn by agreement"]

1. e4 {[%clk 0:03:00.9]} 1... c5 {[%clk 0:02:57.6]} 2. Nf3 {[%clk 0:03:01]} 2...
d6 {[%clk 0:02:56.4]} 3. d4 {[%clk 0:03:01.6]} 3... cxd4 {[%clk 0:02:57.3]} 4.
Nxd4 {[%clk 0:03:02.5]} 4... Nf6 {[%clk 0:02:57.6]} 5. Nc3 {[%clk 0:03:03.1]}
5... Nc6 {[%clk 0:02:58]} 6. Bg5 {[%clk 0:03:02.8]} 6... Bd7 {[%clk 0:02:58.2]}
7. Qd2 {[%clk 0:03:02]} 7... Rc8 {[%clk 0:02:58]} 8. Nxc6 {[%clk 0:03:00.6]}
8... Bxc6 {[%clk 0:02:55.1]} 9. Bd3 {[%clk 0:02:59.4]} 9... e6 {[%clk
0:02:51.9]} 10. O-O {[%clk 0:02:59.3]} 10... Be7 {[%clk 0:02:52.1]} 11. Rad1
{[%clk 0:02:58.7]} 11... O-O {[%clk 0:02:49]} 12. Qe2 {[%clk 0:02:51.9]} 12...
Nd7 {[%clk 0:02:33.3]} 13. Bxe7 {[%clk 0:02:48.6]} 13... Qxe7 {[%clk 0:02:34.2]}
14. f4 {[%clk 0:02:48.8]} 14... Rfd8 {[%clk 0:02:30]} 15. Kh1 {[%clk 0:02:44.5]}
15... Nc5 {[%clk 0:02:26.4]} 16. f5 {[%clk 0:02:40.3]} 16... Kh8 {[%clk
0:02:14.3]} 17. Qh5 {[%clk 0:02:33.6]} 17... Nxd3 {[%clk 0:02:00.9]} 18. Rxd3
{[%clk 0:02:30.4]} 18... exf5 {[%clk 0:01:56.2]} 19. Rh3 {[%clk 0:02:25.9]}
19... h6 {[%clk 0:01:51.3]} 20. exf5 {[%clk 0:02:19.2]} 20... Qf6 {[%clk
0:01:48.5]} 21. Re3 {[%clk 0:02:05.2]} 21... Re8 {[%clk 0:01:44.2]} 22. Rfe1
{[%clk 0:02:05.3]} 22... Rxe3 {[%clk 0:01:40.1]} 23. Rxe3 {[%clk 0:02:06.2]}
23... d5 {[%clk 0:01:40.1]} 24. Re1 {[%clk 0:01:47.5]} 24... d4 {[%clk
0:01:31.4]} 25. Nd1 {[%clk 0:01:42.8]} 25... Re8 {[%clk 0:01:25]} 26. Rxe8+
{[%clk 0:01:35.3]} 26... Bxe8 {[%clk 0:01:25.9]} 27. h3 {[%clk 0:01:21.5]} 27...
Bc6 {[%clk 0:01:24.8]} 28. Nf2 {[%clk 0:01:19.2]} 28... Qe7 {[%clk 0:00:53.2]}
29. Nd3 {[%clk 0:01:17.5]} 29... Qe4 {[%clk 0:00:44.3]} 30. Qg4 {[%clk
0:01:12.4]} 30... Qxg4 {[%clk 0:00:34.4]} 31. hxg4 {[%clk 0:01:13.3]} 31... Be4
{[%clk 0:00:34.6]} 32. Kg1 {[%clk 0:01:08.4]} 32... g6 {[%clk 0:00:35]} 33. fxg6
{[%clk 0:01:03.7]} 33... fxg6 {[%clk 0:00:35.8]} 34. Kf2 {[%clk 0:01:02.6]}
34... Kg7 {[%clk 0:00:35.6]} 35. Kg3 {[%clk 0:00:51.9]} 35... Kf6 {[%clk
0:00:33.4]} 36. Nb4 {[%clk 0:00:46.5]} 36... a5 {[%clk 0:00:29.3]} 37. Nd3
{[%clk 0:00:46.4]} 37... Bxd3 {[%clk 0:00:20.2]} 38. cxd3 {[%clk 0:00:45.7]}
38... Ke5 {[%clk 0:00:20.3]} 39. Kf3 {[%clk 0:00:43.2]} 39... g5 {[%clk
0:00:19.5]} 40. Kg3 {[%clk 0:00:39]} 40... b5 {[%clk 0:00:17]} 1/2-1/2

[Event "*** Titled Tuesday Blitz"]
[Site "Chess.com"]
[Date "2020.12.01"]
[Round "8"]
[White "bazar-wokzal"]
[Black "lucachess49"]
[Result "1-0"]
[WhiteElo "2538"]
[BlackElo "2365"]
[TimeControl "180+1"]
[EndTime "11:26:24 PST"]
[Termination "bazar-wokzal won on time"]

1. e4 {[%clk 0:02:57.8]} 1... e5 {[%clk 0:02:33]} 2. Bc4 {[%clk 0:02:57.3]} 2...
Nf6 {[%clk 0:02:32]} 3. d3 {[%clk 0:02:57.3]} 3... Nc6 {[%clk 0:02:30.9]} 4. Nf3
{[%clk 0:02:57.6]} 4... Be7 {[%clk 0:02:06.3]} 5. O-O {[%clk 0:02:56.8]} 5...
O-O {[%clk 0:02:06.8]} 6. Re1 {[%clk 0:02:56.2]} 6... d6 {[%clk 0:02:03.5]} 7.
a4 {[%clk 0:02:56]} 7... Na5 {[%clk 0:02:03.8]} 8. Ba2 {[%clk 0:02:55.4]} 8...
c5 {[%clk 0:02:04.7]} 9. Nc3 {[%clk 0:02:47.8]} 9... Nc6 {[%clk 0:02:03.7]} 10.
Bg5 {[%clk 0:02:45.8]} 10... h6 {[%clk 0:01:50.8]} 11. Bxf6 {[%clk 0:02:45.4]}
11... Bxf6 {[%clk 0:01:51.7]} 12. Nd5 {[%clk 0:02:45.7]} 12... Be6 {[%clk
0:01:50.4]} 13. c3 {[%clk 0:02:44.7]} 13... g6 {[%clk 0:01:37.7]} 14. Nd2 {[%clk
0:02:38.9]} 14... Bg7 {[%clk 0:01:36.9]} 15. Nf1 {[%clk 0:02:39.2]} 15... Ne7
{[%clk 0:01:35.4]} 16. Nfe3 {[%clk 0:02:36.5]} 16... f5 {[%clk 0:01:23.1]} 17.
Qb3 {[%clk 0:02:09.8]} 17... Nxd5 {[%clk 0:01:18.1]} 18. Nxd5 {[%clk 0:02:06]}
18... b6 {[%clk 0:01:08.6]} 19. a5 {[%clk 0:02:02.2]} 19... Rb8 {[%clk
0:01:06.6]} 20. axb6 {[%clk 0:02:00.8]} 20... axb6 {[%clk 0:01:06.1]} 21. Qb5
{[%clk 0:01:54.1]} 21... f4 {[%clk 0:00:46.2]} 22. f3 {[%clk 0:01:38.7]} 22...
Kh7 {[%clk 0:00:25.1]} 23. Bc4 {[%clk 0:01:37.3]} 23... Bd7 {[%clk 0:00:22.9]}
24. Qa6 {[%clk 0:01:29.6]} 24... g5 {[%clk 0:00:16.5]} 25. Bb5 {[%clk 0:01:21]}
25... Be6 {[%clk 0:00:13.6]} 26. Bc6 {[%clk 0:01:18.4]} 26... g4 {[%clk
0:00:13.5]} 27. fxg4 {[%clk 0:01:05.8]} 27... f3 {[%clk 0:00:06.6]} 28. gxf3
{[%clk 0:00:46.4]} 28... Rxf3 {[%clk 0:00:07.5]} 29. Ne3 {[%clk 0:00:33.6]}
29... Qh4 {[%clk 0:00:05.3]} 30. Re2 {[%clk 0:00:24.9]} 1-0

[Event "*** Titled Tuesday Blitz"]
[Site "Chess.com"]
[Date "2020.12.01"]
[Round "8"]
[White "Andrii_Prydun"]
[Black "parintele_chess"]
[Result "1-0"]
[WhiteElo "2347"]
[BlackElo "2192"]
[TimeControl "180+1"]
[EndTime "11:26:24 PST"]
[Termination "Andrii_Prydun won by resignation"]

1. d4 {[%clk 0:03:00.9]} 1... d5 {[%clk 0:02:59.4]} 2. c4 {[%clk 0:03:00.3]}
2... e6 {[%clk 0:02:59.3]} 3. Nf3 {[%clk 0:03:00.8]} 3... Nf6 {[%clk 0:02:59.3]}
4. g3 {[%clk 0:03:01.2]} 4... Be7 {[%clk 0:02:56.7]} 5. Bg2 {[%clk 0:03:01.6]}
5... O-O {[%clk 0:02:55.8]} 6. O-O {[%clk 0:03:02]} 6... dxc4 {[%clk 0:02:56.2]}
7. Qc2 {[%clk 0:02:57.3]} 7... a6 {[%clk 0:02:55.3]} 8. a4 {[%clk 0:02:56.4]}
8... Bd7 {[%clk 0:02:54.8]} 9. Qxc4 {[%clk 0:02:56.1]} 9... Bc6 {[%clk
0:02:54.2]} 10. Bf4 {[%clk 0:02:56]} 10... Nbd7 {[%clk 0:02:51.3]} 11. Ne5
{[%clk 0:02:50.1]} 11... Bxg2 {[%clk 0:02:48.5]} 12. Kxg2 {[%clk 0:02:51]} 12...
c5 {[%clk 0:02:46.8]} 13. dxc5 {[%clk 0:02:46.6]} 13... Nd5 {[%clk 0:02:35.3]}
14. c6 {[%clk 0:02:40.9]} 14... Nxf4+ {[%clk 0:02:32.4]} 15. Qxf4 {[%clk
0:02:38.2]} 15... Nxe5 {[%clk 0:02:31.6]} 16. cxb7 {[%clk 0:02:37]} 16... Qd5+
{[%clk 0:02:29.7]} 17. e4 {[%clk 0:02:35.9]} 17... Qxb7 {[%clk 0:02:29]} 18.
Qxe5 {[%clk 0:02:35.7]} 18... Bf6 {[%clk 0:02:29.1]} 19. Qf4 {[%clk 0:02:33.4]}
19... Qxb2 {[%clk 0:02:24.8]} 20. Nd2 {[%clk 0:02:32.3]} 20... Qxa1 {[%clk
0:02:18.4]} 21. Rxa1 {[%clk 0:02:31]} 21... Bxa1 {[%clk 0:02:19.3]} 22. Nc4
{[%clk 0:02:26.8]} 22... e5 {[%clk 0:02:15.9]} 23. Qf5 {[%clk 0:02:24.6]} 23...
Rac8 {[%clk 0:02:08.8]} 24. Ne3 {[%clk 0:02:16]} 24... f6 {[%clk 0:02:05]} 25.
Qe6+ {[%clk 0:02:11.8]} 25... Kh8 {[%clk 0:02:04.5]} 26. Qxa6 {[%clk 0:02:09.4]}
26... Rfd8 {[%clk 0:01:55]} 27. Qb7 {[%clk 0:02:07.1]} 27... Rb8 {[%clk
0:01:52.6]} 28. Qf7 {[%clk 0:02:00.5]} 28... Rf8 {[%clk 0:01:52.4]} 29. Qe7
{[%clk 0:01:16.3]} 29... Rfe8 {[%clk 0:01:50.3]} 30. Qa3 {[%clk 0:00:58.5]}
30... Bd4 {[%clk 0:01:46.7]} 31. Nf5 {[%clk 0:00:58]} 31... Ba7 {[%clk
0:01:34.6]} 32. h4 {[%clk 0:00:56]} 32... g6 {[%clk 0:01:27]} 33. Nd6 {[%clk
0:00:55.2]} 33... Re6 {[%clk 0:01:18.7]} 34. Nb5 {[%clk 0:00:52.9]} 34... Bd4
{[%clk 0:01:07.3]} 35. Qb3 {[%clk 0:00:50.7]} 35... Re7 {[%clk 0:00:58.5]} 36.
h5 {[%clk 0:00:48.1]} 36... Kg7 {[%clk 0:00:49.9]} 37. Qa3 {[%clk 0:00:43.2]}
37... Rf7 {[%clk 0:00:41.5]} 38. Qc1 {[%clk 0:00:42.7]} 38... g5 {[%clk
0:00:37]} 39. Nd6 {[%clk 0:00:36.2]} 39... Rb2 {[%clk 0:00:36.7]} 40. Nf5+
{[%clk 0:00:35.5]} 40... Kg8 {[%clk 0:00:32.1]} 41. Nxd4 {[%clk 0:00:35.8]} 1-0

[Event "*** Titled Tuesday Blitz"]
[Site "Chess.com"]
[Date "2020.12.01"]
[Round "8"]
[White "Sanyura"]
[Black "PavelShkapenko"]
[Result "0-1"]
[WhiteElo "2524"]
[BlackElo "2693"]
[TimeControl "180+1"]
[EndTime "11:26:25 PST"]
[Termination "PavelShkapenko won on time"]

1. e4 {[%clk 0:03:00.9]} 1... e5 {[%clk 0:02:59.4]} 2. Nf3 {[%clk 0:03:00.9]}
2... Nc6 {[%clk 0:02:59.9]} 3. Bb5 {[%clk 0:03:01.5]} 3... Bc5 {[%clk
0:02:59.9]} 4. Nc3 {[%clk 0:02:57.3]} 4... d6 {[%clk 0:02:56.2]} 5. O-O {[%clk
0:02:55]} 5... Bd7 {[%clk 0:02:52.7]} 6. Bxc6 {[%clk 0:02:53.5]} 6... Bxc6
{[%clk 0:02:50.2]} 7. d4 {[%clk 0:02:53.5]} 7... exd4 {[%clk 0:02:50.9]} 8. Nxd4
{[%clk 0:02:54.4]} 8... Bd7 {[%clk 0:02:51.5]} 9. Re1 {[%clk 0:02:50.6]} 9...
Ne7 {[%clk 0:02:50.5]} 10. Bg5 {[%clk 0:02:48.9]} 10... O-O {[%clk 0:02:41.3]}
11. Nb3 {[%clk 0:02:31.1]} 11... Bb6 {[%clk 0:02:35.2]} 12. a4 {[%clk
0:02:31.2]} 12... f6 {[%clk 0:02:31.4]} 13. Bh4 {[%clk 0:02:17.3]} 13... a6
{[%clk 0:02:25.2]} 14. a5 {[%clk 0:02:13.3]} 14... Ba7 {[%clk 0:02:24]} 15. Bg3
{[%clk 0:02:12.3]} 15... Kh8 {[%clk 0:02:19.7]} 16. Kh1 {[%clk 0:02:11.2]} 16...
Ng6 {[%clk 0:02:05.4]} 17. f4 {[%clk 0:01:59]} 17... f5 {[%clk 0:02:04.7]} 18.
Qh5 {[%clk 0:01:50.7]} 18... fxe4 {[%clk 0:01:59.1]} 19. Nxe4 {[%clk 0:01:51.6]}
19... Nxf4 {[%clk 0:01:24.8]} 20. Bxf4 {[%clk 0:01:47.8]} 20... Rxf4 {[%clk
0:01:25.3]} 21. Ng5 {[%clk 0:01:47.9]} 21... Qg8 {[%clk 0:01:25.3]} 22. Re7
{[%clk 0:01:38.4]} 22... Raf8 {[%clk 0:01:18.9]} 23. h4 {[%clk 0:00:27.6]} 23...
Bg4 {[%clk 0:01:11.7]} 24. Nf7+ {[%clk 0:00:21.6]} 24... R8xf7 {[%clk
0:01:10.2]} 25. Rxf7 {[%clk 0:00:21.8]} 25... Qxf7 {[%clk 0:01:10]} 26. Qg5
{[%clk 0:00:20.5]} 26... h6 {[%clk 0:00:50]} 27. Qd8+ {[%clk 0:00:07.5]} 27...
Kh7 {[%clk 0:00:49.8]} 28. Nd2 {[%clk 0:00:06.5]} 28... Qf6 {[%clk 0:00:39.5]}
29. Qxf6 {[%clk 0:00:05.4]} 29... Rxf6 {[%clk 0:00:39.6]} 30. Ne4 {[%clk
0:00:05]} 30... Re6 {[%clk 0:00:38.1]} 31. Nc3 {[%clk 0:00:04.4]} 31... Bf5
{[%clk 0:00:35.5]} 32. Rc1 {[%clk 0:00:01.4]} 32... Bf2 {[%clk 0:00:34.4]} 33.
Rf1 {[%clk 0:00:00.5]} 33... Re1 {[%clk 0:00:34.3]} 0-1